Workbook

Sheet Uitleg

Sheet Invulblad en resultaten
B1: GGD Rekentool Luchtkwaliteit & Gezondheid - Invulblad en resultaten
B3: Vul in het aantal bewoners : | E3: 2013438 | F3: Check op representativiteit!
B5: Vink de stoffen aan waarmee je wilt rekenen en vul vervolgens
B6: de blootstelling in (gebruik de schuifbalk of pijltjes) | I6: Vroegtijdige sterfte in dagen | Q6: Daling longcapaciteit kinderen 0-18 jaar (FEV1) in % (PM2,5 en NO2)
E7: =IF(AND(B8=FALSE,B11=FALSE),"onjuiste invoer, of PM10 of PM2,5 of beide aanvinken",IF(B8=TRUE,$E$8*0.1,E11/0.52)) -> 15 | I7: One-pollutant model | N7: Two-pollutant model
B8: TRUE | C8: PM10 | E8: 150 | I8: (PM2,5 en NO2: Hoffman, 2022; PM10: Hoek, 2021) | N8: (RIVM, 2023)
R9: =ROUND(Rekenblad!B26*100,1) -> 1.6
I10: =Rekenblad!B36 -> 369 | K10: =Rekenblad!B35 -> 189 | M10: =Rekenblad!B37 -> 218 | O10: =Rekenblad!B31 -> 351 | R10: =ROUND(Rekenblad!B27*100,1) -> 1.1
B11: TRUE | E11: =IF(AND(B8=FALSE,B11=FALSE),"onjuiste invoer, of PM10 of PM2,5 of beide aanvinken",IF(B11=TRUE,$E$12*0.1,E7*0.52)) -> 10
C12: PM2,5 | E12: 100
B14: TRUE
E15: =IF(B14=TRUE,$E$16*0.1,0) -> 15
C16: NO2 | E16: 150
B17: TRUE
B20: Aandeel ziektelast als % van het totaal aantal gevallen (b.v. van alle gevallen van longkanker per jaar wordt x% veroorzaakt door luchtverontreiniging) | Q20: Indicator | R20: Ziektelast | W20: Cases per jaar
Q21: PM2,5 | R21: Laag geboortegewicht (0-1) | W21: =Rekenmodel!E8 -> 26.77614516
Q22: NO2 | R22: Incidentie astma kinderen (0-18) | W22: =Rekenmodel!E9 -> 259.2151366
Q23: PM2,5 | R23: Incidentie hartinfarct (35+) | W23: =Rekenmodel!E10 -> 723.3906789
Q24: PM2,5 | R24: Incidentie beroerte (35+) | W24: =Rekenmodel!E11 -> 847.9944814
Q25: PM2,5 | R25: Longkanker (50+) | W25: =Rekenmodel!E12 -> 217.8065868
Q26: PM2,5 | R26: Ziekenhuisopnames astma (alle leeftijden) | W26: =Rekenmodel!E13 -> 22.64595837
Q27: PM2,5 | R27: Ziekenhuisopnames COPD (alle leeftijden) | W27: =Rekenmodel!E14 -> 60.00803737
Q28: NO2 | R28: Ziekenhuisopnames astma (alle leeftijden) | W28: =Rekenmodel!E15 -> 20.78809656
Q29: NO2 | R29: Ziekenhuisopnames ischemische hartziekten (40+) | W29: =Rekenmodel!E16 -> 116.4584598
Q32: Aantal meegerookte sigaretten per dag (op basis van PM2,5 en NO2)
Q34: =ROUND(Meerookmethode!G9,1) -> 4.2

Sheet Rekenblad (hidden)
A1: GEEL=VERWIJZING INVULBLAD EN RESULTATEN | B1: 2021
A2: GROEN=RESULTATEN ZIEKTELAST
A3: ORANJE=RESULTATEN VROEGTIJDIG OVERLIJDEN
A5: Totaal aantal inwoners waarop de berekening betrekking heeft | B5: ='Invulblad en resultaten'!E3 -> 2013438 | C5: Bevolking 2021
A6: Welk verschil in PM10 concentratie wil je doorrekenen? | B6: ='Invulblad en resultaten'!E7 -> 15 | C6: Bevolkingsgewogen gemiddelde
A7: Welk verschil in PM2,5 concentratie wil je doorrekenen? | B7: ='Invulblad en resultaten'!E11 -> 10 | C7: Bevolkingsgewogen gemiddelde
A8: Op welk verschil in NO2 concentratie heeft de berekening van levensduur betrekking? | B8: ='Invulblad en resultaten'!E15 -> 15 | C8: Bevolkingsgewogen gemiddelde
A11: Ziektelast | B11: Attributieve cases / ziektelast * | C11: Aandeel ziektelast door PM2,5 **
A12: Laag geboortegewicht (0-1) - PM2,5 | B12: =Rekenmodel!E8 -> 26.77614516 | C12: =Rekenmodel!F8 -> 0.0749306198
A13: Incidentie astma kinderen (0-18) - NO2 | B13: =Rekenmodel!E9 -> 259.2151366 | C13: =Rekenmodel!F9 -> 0.166397349
A14: Incidentie hartinfarct (35+) - PM2,5 | B14: =Rekenmodel!E10 -> 723.3906789 | C14: =Rekenmodel!F10 -> 0.09090909091
A15: Incidentie beroerte (35+) - PM2,5 | B15: =Rekenmodel!E11 -> 847.9944814 | C15: =Rekenmodel!F11 -> 0.1869918699
A16: Longkanker (50+) - PM2,5 | B16: =Rekenmodel!E12 -> 217.8065868 | C16: =Rekenmodel!F12 -> 0.1379310345
A17: Ziekenhuisopnames astma (alle leeftijden) - PM2,5 | B17: =Rekenmodel!E13 -> 22.64595837 | C17: =Rekenmodel!F13 -> 0.02248289345
A18: Ziekenhuisopnames COPD (alle leeftijden) - PM2,5 | B18: =Rekenmodel!E14 -> 60.00803737 | C18: =Rekenmodel!F14 -> 0.0243902439
A19: Ziekenhuisopnames astma (alle leeftijden) - NO2 | B19: =Rekenmodel!E15 -> 20.78809656 | C19: =Rekenmodel!F15 -> 0.02063840939
A20: Ziekenhuisopnames ischemische hartziekten (40+) - NO2 | B20: =Rekenmodel!E16 -> 116.4584598 | C20: =Rekenmodel!F16 -> 0.01773372963
A22: *) Absoluut aantal gevallen door luchtverontreiniging, bijvoorbeeld een x aantal mensen per jaar met longkanker door luchtverontreiniging
A23: **) Percentage van het totaal aantal gevallen, bijvoorbeeld van alle gevallen longkanker per jaar wordt x procent veroorzaakt door luchtverontreiniging
B25: Percentage afname FEV1
A26: FEV1 daling kinderen (0-18 jaar) in procenten - PM2,5 | B26: =Rekenmodel!E19 -> 0.016
A27: FEV1 daling kinderen (0-18 jaar) in procenten - NO2 | B27: =Rekenmodel!E20 -> 0.0105
A29: Vroegtijdig overlijden | B29: Vroegtijdig overlijden
A30: Vroegtijdig overlijden two pollutant model:
A31: Vroegtijdig overlijden (totale sterfte) >30 jaar in dagen door PM2,5 en NO2 | B31: =ROUND(Rekenmodel!E25,0) -> 351
A33: Vroegtijdig overlijden one pollutant model (als je geen PM10/2,5 én NO2 concentraties hebt):
A34: Zie voor toelichting in begeleidende rapportage welke component je in jouw geval kunt gebruiken
A35: Vroegtijdig overlijden (totale sterfte) >30 jaar in dagen door PM10 | B35: =ROUND(Rekenmodel!E28,0) -> 189
A36: Vroegtijdig overlijden (totale sterfte) >30 jaar in dagen door PM2,5 | B36: =ROUND(Rekenmodel!E29,0) -> 369
A37: Vroegtijdig overlijden (totale sterfte) >30 jaar in dagen door NO2 | B37: =ROUND(Rekenmodel!E30,0) -> 218
A40: Let op: Je mag in geen geval het vroegtijdig overlijden (in dagen) van bovenstaande berekeningen bij elkaar optellen. Je moet kiezen uit één van de getallen in de oranje vakjes

Sheet Rekenmodel (hidden)
A2: Totaal aantal inwoners waarop de berekening betrekking heeft | B2: ='Invulblad en resultaten'!E3 -> 2013438
A3: Welk verschil in PM10 concentratie wil je doorrekenen? | B3: =IF(Rekenblad!B6="","",Rekenblad!B6) -> 15
A4: Welk verschil in PM2.5 concentratie wil je doorrekenen? | B4: =IF(Rekenblad!B7="","",Rekenblad!B7) -> 10
A5: =IF(Rekenblad!A8="","",Rekenblad!A8) -> Op welk verschil in NO2 concentratie heeft de berekening van levensduur betrekking? | B5: =IF(Rekenblad!B8="","",Rekenblad!B8) -> 15
A7: Ziektelast | C7: Populatie at risk | D7: Incidentie gekozen populatie | E7: Attributieve cases / ziektelast | F7: Aandeel ziektelast door PM10/PM2.5/NO2 | H7: RR voor PM10 (per 10 ug/m3) | I7: RR voor PM2.5 (per 10 ug/m3) | J7: RR voor NO2 (per 10 ug/m3) | K7: beta per 1 ug/m3 PM2.5 | L7: beta voor 1 ug/m3 PM10 | M7: beta voor 1 ug/m3 NO2 | N7: RR behorend bij delta PM2.5 | O7: RR behorend bij delta NO2 | P7: RR behorend bij delta PM10 | Q7: Attributieve cases door PM2.5 | R7: Attributieve cases door NO2 | T7: Attributieve cases door PM10 | U7: Bron effectschatting | V7: Incidentie/prevalentie 2019 | X7: Bron incidentie/prevalentie
A8: Laag geboortegewicht (0-1) | B8: PM2.5 | C8: =($B$2/'Leeftijdsopbouw NL 2021'!B4)*'Leeftijdsopbouw NL 2021'!B5 -> 20503.66178 | D8: =($B$2/'Leeftijdsopbouw NL 2021'!B4)*W8 -> 357.3458385 | E8: =Q8 -> 26.77614516 | F8: =E8/D8 -> 0.0749306198 | I8: 1.081 | K8: =LN(I8)/10 -> 0.007788653866 | N8: =IF($B$4="","",EXP($B$4*$K8)) -> 1.081 | Q8: =((N8-1)/N8)*$D8 -> 26.77614516 | U8: Li et al., 2020 | V8: Incidentie (0-1 jarigen) | W8: 3122 | X8: RIVM-VTV, data 2021
A9: Incidentie astma kinderen (0-18) | B9: NO2 | C9: =($B$2/'Leeftijdsopbouw NL 2021'!B4)*SUM('Leeftijdsopbouw NL 2021'!$B$5:$B$25) -> 453723.2245 | D9: =($B$2/'Leeftijdsopbouw NL 2021'!B4)*W9 -> 1557.808092 | E9: =R9 -> 259.2151366 | F9: 0.166397349 | J9: 1.129 | M9: =LN(J9)/10 -> 0.01213322852 | O9: =IF($B$5="","",EXP($B$5*M9)) -> 1.199612308 | R9: =((O9-1)/O9)*D9 -> 259.2151366 | U9: Khreis, H. et al, 2017 | V9: Incidentie (0-20 jarigen) | W9: 13610 | X9: RIVM-VTV, data 2021
A10: Incidentie hartinfarct volwassenen (35+) | B10: PM2.5 | C10: =($B$2/'Leeftijdsopbouw NL 2021'!B4)*SUM('Leeftijdsopbouw NL 2021'!B40:B104) -> 1194623.048 | D10: =($B$2/'Leeftijdsopbouw NL 2021'!B4)*W10 -> 7957.297468 | E10: =Q10 -> 723.3906789 | F10: 0.09090909091 | I10: 1.1 | K10: =LN(I10)/10 -> 0.00953101798 | N10: =IF($B$4="","",EXP($B$4*$K10)) -> 1.1 | Q10: =((N10-1)/N10)*$D10 -> 723.3906789 | U10: Zhu et al., 2021 | V10: Incidentie (35+) | W10: 69520 | X10: RIVM-VTV, data 2021
A11: Incidentie beroerte volwassenen (35+) | B11: PM2,5 | C11: =($B$2/'Leeftijdsopbouw NL 2021'!B4)*SUM('Leeftijdsopbouw NL 2021'!B40:B104) -> 1194623.048 | D11: =($B$2/'Leeftijdsopbouw NL 2021'!B4)*W11 -> 4534.927009 | E11: =Q11 -> 847.9944814 | F11: =E11/D11 -> 0.1869918699 | I11: 1.23 | K11: =LN(I11)/10 -> 0.02070141694 | N11: =IF($B$4="","",EXP($B$4*$K11)) -> 1.23 | Q11: =((N11-1)/N11)*$D11 -> 847.9944814 | U11: Yuan et al., 2019 | V11: Incidentie (35+) | W11: 39620 | X11: RIVM-VTV, data 2021
A12: Longkanker (50+) | B12: PM2.5 | C12: =($B$2/'Leeftijdsopbouw NL 2021'!B4)*SUM('Leeftijdsopbouw NL 2021'!B55:B104) -> 827837.4192 | D12: =($B$2/'Leeftijdsopbouw NL 2021'!B4)*W12 -> 1579.097754 | E12: =Q12 -> 217.8065868 | F12: =E12/D12 -> 0.1379310345 | I12: 1.16 | K12: =LN(I12)/10 -> 0.01484200051 | N12: =IF($B$4="","",EXP($B$4*$K12)) -> 1.16 | Q12: =((N12-1)/N12)*$D12 -> 217.8065868 | U12: Cibattini et al., 2020 | V12: Incidentie (50+) | W12: 13796 | X12: RIVM-VTV, data 2021
A13: Ziekenhuisopnames astma (alle leeftijden) | B13: PM2.5 | C13: =$B$2 -> 2013438 | D13: =($B$2/'Leeftijdsopbouw NL 2021'!B4)*W13 -> 1007.252844 | E13: =Q13 -> 22.64595837 | F13: 0.02248289345 | I13: 1.023 | K13: =LN(I13)/10 -> 0.002273948697 | N13: =IF($B$4="","",EXP($B$4*$K13)) -> 1.023 | Q13: =((N13-1)/N13)*$D13 -> 22.64595837 | U13: Zheng et al., 2015 | V13: Incidentie (alle leeftijden) | W13: 8800 | X13: CBS Staline, VTV indeling, astma, data 2021
A14: Ziekenhuisopnames COPD (alle leeftijden) | B14: PM2.5 | C14: =$B$2 -> 2013438 | D14: =($B$2/'Leeftijdsopbouw NL 2021'!B4)*W14 -> 2460.329532 | E14: =Q14 -> 60.00803737 | F14: 0.0243902439 | I14: 1.025 | K14: =LN(I14)/10 -> 0.002469261259 | N14: =IF($B$4="","",EXP($B$4*$K14)) -> 1.025 | Q14: =((N14-1)/N14)*$D14 -> 60.00803737 | U14: Zhu et al., 2020 | V14: Incidentie (alle leeftijden) | W14: 21495 | X14: CBS Staline, VTV indeling, COPD, data 2021
A15: Ziekenhuisopnames astma (alle leeftijden) | B15: NO2 | C15: =$B$2 -> 2013438 | D15: =($B$2/'Leeftijdsopbouw NL 2021'!B4)*W15 -> 1007.252844 | E15: =R15 -> 20.78809656 | F15: 0.02063840939 | J15: 1.014 | M15: =LN(J15)/10 -> 0.001390290517 | O15: =IF($B$5="","",EXP($B$5*M15)) -> 1.021073329 | R15: =((O15-1)/O15)*D15 -> 20.78809656 | U15: Zheng et al., 2021 | V15: Incidentie (alle leeftijden) | W15: 8800 | X15: CBS Staline, VTV indeling, astma, data 2021
A16: Ziekenhuisopnames ischemische hartziekten (40+) | B16: NO2 | C16: =($B$2/'Leeftijdsopbouw NL 2021'!B4)*SUM('Leeftijdsopbouw NL 2021'!B45:B104) -> 1071924.657 | D16: =($B$2/'Leeftijdsopbouw NL 2021'!B4)*W16 -> 6567.059622 | E16: =R16 -> 116.4584598 | F16: 0.01773372963 | J16: 1.012 | M16: =LN(J16)/10 -> 0.001192857087 | O16: =IF($B$5="","",EXP($B$5*M16)) -> 1.018053892 | R16: =((O16-1)/O16)*D16 -> 116.4584598 | U16: Stieb et al., 2020 | V16: Incidentie (45+) | W16: 57374 | X16: Hartstichting 2022, data 2021
C18: Populatie at risk | E18: Percentage afname FEV1 | I18: Daling in FEV1 voor PM2,5 (per 10 µg/m³) | U18: idem | V18: idem | X18: idem
A19: FEV1 daling kinderen (0-18 jaar) in procenten | B19: PM2.5 | C19: =($B$2/'Leeftijdsopbouw NL 2021'!B4)*SUM('Leeftijdsopbouw NL 2021'!$B$5:$B$25) -> 453723.2245 | E19: =IF($B$4="","",(I19/10)*$B$4) -> 0.016 | I19: 0.016 | U19: Gehring, 2021 | V19: 1,6% daling per 10 µg/m³ PM2,5 | X19: nvt
A20: FEV1 daling kinderen (0-18 jaar) in procenten | B20: NO2 | C20: =($B$2/'Leeftijdsopbouw NL 2021'!B4)*SUM('Leeftijdsopbouw NL 2021'!$B$5:$B$25) -> 453723.2245 | E20: =IF($B$4="","",(J20/10)*$B$5) -> 0.0105 | J20: 0.007 | U20: Gehring, 2021 | V20: 0,7% daling per 10 µg/m³ NO2 | X20: nvt
A21: Vroegtijdig overlijden | C21: Populatie at risk | E21: Vroegtijdig overlijden | H21: Aantal dagen vroegtijdig overlijden (per 10µg/m³)
A22: Vroegtijdig overlijden two pollutant model coform Hoffman/RIVM (2023):
A23: Totale sterfte (afname in levensverwachting) >30 jaar in dagen door PM2,5 | B23: PM2,5 | C23: =($B$2/'Leeftijdsopbouw NL 2021'!B4)*SUM('Leeftijdsopbouw NL 2021'!$B$35:$B$104) -> 1326078.587 | E23: =(H23/10)*$B$4 -> 201 | H23: 201 | U23: Hoffman et al. 2022 & COMEAP 2018 | V23: Bevolking 30 jaar en ouder
A24: Totale sterfte (afname in levensverwachting) >30 jaar in dagen door NO2 | B24: NO2 | C24: =($B$2/'Leeftijdsopbouw NL 2021'!B4)*SUM('Leeftijdsopbouw NL 2021'!$B$35:$B$104) -> 1326078.587 | E24: =IF($B$5="","",(H24/10)*$B$5) -> 150 | H24: 100 | U24: Hoffman et al. 2022 & COMEAP 2018 | V24: Bevolking 30 jaar en ouder
A25: Totale sterfte (afname in levensverwachting) >30 jaar in dagen door PM2,5 en NO2 (two-pollutant model) | B25: PM2,5 en NO2 | C25: =($B$2/'Leeftijdsopbouw NL 2021'!B4)*SUM('Leeftijdsopbouw NL 2021'!$B$35:$B$104) -> 1326078.587 | E25: =E23+E24 -> 351 | H25: =H23+H24 -> 301 | U25: Hoffman et al. 2022 & COMEAP 2018 | V25: Bevolking 30 jaar en ouder
A27: Vroegtijdig overlijden one pollutant model (als je geen PM10/2,5 én NO2 concentraties hebt):
A28: Totale sterfte (afname in levensverwachting) >30 jaar in dagen door PM10 (one pollutant model - Hoek) | B28: PM10 | C28: =($B$2/'Leeftijdsopbouw NL 2021'!B4)*SUM('Leeftijdsopbouw NL 2021'!$B$35:$B$104) -> 1326078.587 | E28: =(B3/10)*H28 -> 189 | H28: 126 | U28: Cheng & Hoek, 2020 | V28: Bevolking 30 jaar en ouder
A29: Totale sterfte (afname in levensverwachting) >30 jaar in dagen door PM2,5 (one pollutant model - Hoffman) | B29: PM2,5 | C29: =($B$2/'Leeftijdsopbouw NL 2021'!B4)*SUM('Leeftijdsopbouw NL 2021'!$B$35:$B$104) -> 1326078.587 | E29: =(B4/10)*H29 -> 369 | H29: 369 | U29: Hoffman et al. 2022 | V29: Bevolking 30 jaar en ouder
A30: Totale sterfte (afname in levensverwachting) >30 jaar in dagen door NO2 (one pollutant model - Hoffman) | B30: NO2 | C30: =($B$2/'Leeftijdsopbouw NL 2021'!B4)*SUM('Leeftijdsopbouw NL 2021'!$B$35:$B$104) -> 1326078.587 | E30: =(B5/10)*H30 -> 217.5 | H30: 145 | U30: Hoffman et al. 2022 | V30: Bevolking 30 jaar en ouder

Sheet Leeftijdsopbouw NL 2021 (hidden)
A1: Bevolking; geslacht en leeftijd op 1 januari 2022
A2: Statline
A3: 2022-01-01
A4: Totaal M+V | B4: 17590672
A5: 0 jaar | B5: 179133 | D5: 0-4 | E5: =SUM(B5:B9) -> 864653
A6: 1 jaar | B6: 169323 | D6: 5-9 | E6: =SUM(B10:B14) -> 894620
A7: 2 jaar | B7: 171226 | D7: 10-14 | E7: =SUM(B15:B19) -> 953188
A8: 3 jaar | B8: 171415 | D8: 15-19 | E8: =SUM(B20:B24) -> 1025356
A9: 4 jaar | B9: 173556
A10: 5 jaar | B10: 176741
A11: 6 jaar | B11: 176234
A12: 7 jaar | B12: 181103
A13: 8 jaar | B13: 177793
A14: 9 jaar | B14: 182749
A15: 10 jaar | B15: 186513
A16: 11 jaar | B16: 191599
A17: 12 jaar | B17: 192560
A18: 13 jaar | B18: 193037
A19: 14 jaar | B19: 189479
A20: 15 jaar | B20: 192725
A21: 16 jaar | B21: 194719
A22: 17 jaar | B22: 200939
A23: 18 jaar | B23: 214061
A24: 19 jaar | B24: 222912
A25: 20 jaar | B25: 226197
A26: 21 jaar | B26: 231493
A27: 22 jaar | B27: 227225
A28: 23 jaar | B28: 226996
A29: 24 jaar | B29: 220974
A30: 25 jaar | B30: 220818
A31: 26 jaar | B31: 222029
A32: 27 jaar | B32: 229261
A33: 28 jaar | B33: 229982
A34: 29 jaar | B34: 232416
A35: 30 jaar | B35: 235174
A36: 31 jaar | B36: 235817
A37: 32 jaar | B37: 227912
A38: 33 jaar | B38: 225299
A39: 34 jaar | B39: 224277
A40: 35 jaar | B40: 223383
A41: 36 jaar | B41: 217872
A42: 37 jaar | B42: 214114
A43: 38 jaar | B43: 208001
A44: 39 jaar | B44: 208601
A45: 40 jaar | B45: 211882
A46: 41 jaar | B46: 214516
A47: 42 jaar | B47: 207041
A48: 43 jaar | B48: 206855
A49: 44 jaar | B49: 203753
A50: 45 jaar | B50: 205223
A51: 46 jaar | B51: 206214
A52: 47 jaar | B52: 215171
A53: 48 jaar | B53: 222245
A54: 49 jaar | B54: 239601
A55: 50 jaar | B55: 250796
A56: 51 jaar | B56: 260912
A57: 52 jaar | B57: 265900
A58: 53 jaar | B58: 254354
A59: 54 jaar | B59: 251108
A60: 55 jaar | B60: 251762
A61: 56 jaar | B61: 254567
A62: 57 jaar | B62: 258325
A63: 58 jaar | B63: 253240
A64: 59 jaar | B64: 247599
A65: 60 jaar | B65: 243990
A66: 61 jaar | B66: 236460
A67: 62 jaar | B67: 232975
A68: 63 jaar | B68: 225583
A69: 64 jaar | B69: 219489
A70: 65 jaar | B70: 214114
A71: 66 jaar | B71: 207190
A72: 67 jaar | B72: 202404
A73: 68 jaar | B73: 197548
A74: 69 jaar | B74: 196060
A75: 70 jaar | B75: 187009
A76: 71 jaar | B76: 185993
A77: 72 jaar | B77: 185630
A78: 73 jaar | B78: 188339
A79: 74 jaar | B79: 194454
A80: 75 jaar | B80: 196590
A81: 76 jaar | B81: 136563
A82: 77 jaar | B82: 138728
A83: 78 jaar | B83: 127888
A84: 79 jaar | B84: 113836
A85: 80 jaar | B85: 104107
A86: 81 jaar | B86: 101553
A87: 82 jaar | B87: 92671
A88: 83 jaar | B88: 85237
A89: 84 jaar | B89: 73972
A90: 85 jaar | B90: 67067
A91: 86 jaar | B91: 59420
A92: 87 jaar | B92: 52155
A93: 88 jaar | B93: 44428
A94: 89 jaar | B94: 38948
A95: 90 jaar | B95: 32086
A96: 91 jaar | B96: 26672
A97: 92 jaar | B97: 20250
A98: 93 jaar | B98: 16003
A99: 94 jaar | B99: 11729
A100: 95 jaar | B100: 8822
A101: 96 jaar | B101: 6229
A102: 97 jaar | B102: 4356
A103: 98 jaar | B103: 2895
A104: 99 jaar of ouder | B104: 4507

Sheet Meerookmethode (hidden)
F1: component | G1: schatting aantal meegerookte sigaretten | H1: standaard error van schatting aantal meegerookte sigaretten | L1: number of pollutants available for comparison | M1: se to usein calculation combined se
B2: VUL DE CONCENTRATIEVERSCHILLEN IN IN DE CELLEN D5, D6. D7 | F2: NO2 | G2: =IF($D$5="","",AVERAGE(S11:S20)) -> 3.293335539 | H2: =IF($D$5="","",SQRT(1/16*($T$11^2+$T$14^2+$T$17^2+$T$20^2))) -> 0.5891088613 | L2: =COUNT(G2:G6) -> 2 | M2: =IF(H2="", "0",H2) -> 0.5891088613
B3: (LAAT LEEG ALS JE GEEN GEGEVENS HEBT)
F4: EC | G4: =IF($D$6="","",AVERAGE(S23:S32)) ->  | H4: =IF($D$6="","",SQRT(1/16*($T$23^2+$T$26^2+$T$29^2+$T$32^2))) ->  | M4: =IF(H4="", "0",H4) -> 0
B5: verschil in concentratie (µg/m3) | C5: NO2 | D5: =Rekenblad!B8 -> 15
F6: PM2.5 | G6: =IF($D$7="","",AVERAGE(S35:S44)) -> 5.121281058 | H6: =IF($D$7="","",SQRT(1/16*($T$35^2+$T$38^2+$T$41^2+$T$44^2))) -> 0.8621385465 | M6: =IF(H6="", "0",H6) -> 0.8621385465
C7: PM2.5 | D7: =Rekenblad!B7 -> 10
F8: overall | G8: =AVERAGE($G$2:$G$6) -> 4.207308299 | H8: =SQRT(1/($L2^2)*($M$2^2+$M$4^2+$M$6^2)) -> 0.5220948487
F9: NO2 en PM2.5 | G9: =AVERAGE(G2,G6) -> 4.207308299
B10: Blootstelling | C10: Relatief Risico / regressiecoefficient | D10: ondergrens 95% btbhti | E10: bovengrens 95% btbhi | F10: Toename in concentratie (ug/m3) waarop RR / regressiecoefficient voor luvo gebaseerd is: | G10: Aantal meegerookte sigaretten waarop de risicoschatting gebaseerd is: | H10: regressiecoefficient per 1 ug/m3 toename in concentratie | I10: ondergrens 95% btbhi van regressiecoefficient per 1 ug/m3 toename in concentratie | J10: bovengrens 95% btbhi van regressiecoefficient per 1 ug/m3 toename in concentratie | K10: standaard error van regressiecoefficient per 1 ug/m3 | L10: regressiecoefficient per meegerookte sigaret | M10: ondergrens 95% btbhi van regressiecoefficient per meegerookte sigaret | N10: bovengrens 95% btbhi van regressiecoefficient per meegerookte sigaret | O10: standaarderror van de regressiecoefficient per meegerookte sigaret | P10: Ratio X/Y (regressie coeff per 1 ug/m3 luvo/regressie coeff per sig) | Q10: Gecombineerde standaard error van de Ratio R | R10: veandering in concentratie (µg/m3) (WORDT STANDAARD OVERGENOMEN UIT CEL D5) | S10: Equivalent aantal meegerookte sigaretten | T10: standaarderror van equivalent aantal meegerookte sigaretten | U10: 2* standard error | V10: ondergrens (95% btbhi) aantal meegerookte sigaretten | W10: bovengrens (95% btbhi) aantal meegerookte sigaretten
A11: Laag geboortegewicht | B11: NO2 | C11: 1.016 | D11: 1 | E11: 1.03 | F11: 10 | H11: =LN(C11)/F11 -> 0.001587334916 | I11: =LN(D11)/F11 -> 0 | J11: =LN(E11)/F11 -> 0.002955880224 | K11: =($J11-$H11)/1.96 -> 0.0006982374023 | P11: =H11/L12 -> 0.03449833487 | Q11: =P11*SQRT((K11/H11)^2+(O12/L12)^2) -> 0.01878619577 | R11: =IF($D$5="","",$D$5) -> 15 | S11: =IF(R11="","",R11*P11) -> 0.517475023 | T11: =IF(R11="","",R11*Q11) -> 0.2817929366 | U11: =IF(R11="","",R11*1.96*Q11) -> 0.5523141558 | V11: =IF(R11="","",S11-U11) -> -0.03483913276 | W11: =IF(R11="","",S11+U11) -> 1.069789179
A12: Laag geboortegewicht | B12: ETS blootstelling ('meeroken') | C12: 1.38 | D12: 1.13 | E12: 1.69 | G12: 7 | L12: =LN(C12)/G12 -> 0.04601192845 | M12: =LN(D12)/G12 -> 0.01745966182 | N12: =LN(E12)/G12 -> 0.07496121842 | O12: =(N12-L12)/1.96 -> 0.0147700459
A14: Afname in longfunctie (FEV1) bij kinderen (%) | B14: NO2 | C14: 0.7 | D14: 0.4 | E14: 1 | F14: 10 | H14: =C14/F14 -> 0.07 | I14: =$D14/$F14 -> 0.04 | J14: =$E14/$F14 -> 0.1 | K14: =($J14-$H14)/1.96 -> 0.01530612245 | P14: =H14/L15 -> 0.45 | Q14: =P14*SQRT((K14/H14)^2+(O15/L15)^2) -> 0.1280835406 | R14: =IF($D$5="","",$D$5) -> 15 | S14: =IF(R14="","",R14*P14) -> 6.75 | T14: =IF(R14="","",R14*Q14) -> 1.921253109 | U14: =IF(R14="","",R14*1.96*Q14) -> 3.765656094 | V14: =IF(R14="","",S14-U14) -> 2.984343906 | W14: =IF(R14="","",S14+U14) -> 10.51565609
A15: Afname in longfunctie (FEV1) bij kinderen (%) | B15: ETS blootstelling ('meeroken') | C15: 1.4 | D15: 1 | E15: 1.9 | G15: 9 | L15: =C15/G15 -> 0.1555555556 | M15: =D15/G15 -> 0.1111111111 | N15: =E15/G15 -> 0.2111111111 | O15: =(N15-L15)/1.96 -> 0.0283446712
A17: Sterfte aan hart-en vaatziekten | B17: NO2 | C17: 1.089 | D17: 1.06 | E17: 1.12 | F17: 10 | H17: =LN(C17)/F17 -> 0.008525984395 | I17: =LN($D17)/$F17 -> 0.005826890812 | J17: =LN($E17)/$F17 -> 0.01133286853 | K17: =(J17-H17)/1.96 -> 0.001432083743 | P17: =H17/L18 -> 0.2496973672 | Q17: =P17*SQRT((K17/H17)^2+(O18/L18)^2) -> 0.05559510995 | R17: =IF($D$5="","",$D$5) -> 15 | S17: =IF(R17="","",R17*P17) -> 3.745460508 | T17: =IF(R17="","",R17*Q17) -> 0.8339266492 | U17: =IF(R17="","",R17*1.96*Q17) -> 1.634496232 | V17: =IF(R17="","",S17-U17) -> 2.110964276 | W17: =IF(R17="","",S17+U17) -> 5.37995674
A18: Sterfte aan hart-en vaatziekten | B18: ETS blootstelling ('meeroken') | C18: 1.27 | D18: 1.19 | E18: 1.36 | G18: 7 | L18: =LN(C18)/G18 -> 0.0341452715 | M18: =LN(D18)/G18 -> 0.02485047245 | N18: =LN(E18)/G18 -> 0.04392638568 | O18: =(N18-L18)/1.96 -> 0.004990364379
A20: Longkanker | B20: NO2 | C20: 1.04 | D20: 1.01 | E20: 1.076 | F20: 10 | H20: =LN(C20)/F20 -> 0.003922071315 | I20: =LN($D20)/$F20 -> 0.0009950330853 | J20: =LN($E20)/$F20 -> 0.007325046174 | K20: =(J20-H20)/1.96 -> 0.001736211663 | P20: =H20/L21 -> 0.1440271085 | Q20: =P20*SQRT((K20/H20)^2+(O21/L21)^2) -> 0.0694976765 | R20: =IF($D$5="","",$D$5) -> 15 | S20: =IF(R20="","",R20*P20) -> 2.160406627 | T20: =IF(R20="","",R20*Q20) -> 1.042465147 | U20: =IF(R20="","",R20*1.96*Q20) -> 2.043231689 | V20: =IF(R20="","",S20-U20) -> 0.1171749378 | W20: =IF(R20="","",S20+U20) -> 4.203638316
A21: Longkanker | B21: ETS blootstelling ('meeroken') | C21: 1.21 | D21: 1.13 | E21: 1.3 | G21: 7 | L21: =LN(C21)/G21 -> 0.02723147994 | M21: =LN(D21)/G21 -> 0.01745966182 | N21: =LN(E21)/G21 -> 0.03748060921 | O21: =(N21-L21)/1.96 -> 0.005229147584
A23: Laag geboortegewicht | B23: Roet | C23: 1 | D23: 1 | E23: 1 | F23: 1 | H23: =LN(C23)/F23 -> 0 | I23: =LN($D23)/$F23 -> 0 | J23: =LN($E23)/$F23 -> 0 | K23: =($J23-$H23)/1.96 -> 0 | P23: =H23/L24 -> 0 | Q23: =P23*SQRT((K23/H23)^2+(O24/L24)^2) ->  | R23: =IF($D$6="","",$D$6) ->  | S23: =IF(R23="","",R23*P23) ->  | T23: =IF(R23="","",R23*Q23) ->  | U23: =IF(R23="","",R23*1.96*Q23) ->  | V23: =IF(R23="","",S23-U23) ->  | W23: =IF(R23="","",S23+U23) -> 
A24: Laag geboortegewicht | B24: ETS blootstelling ('meeroken') | C24: 1.38 | D24: 1.13 | E24: 1.69 | G24: 7 | L24: =LN(C24)/G24 -> 0.04601192845 | M24: =LN(D24)/G24 -> 0.01745966182 | N24: =LN(E24)/G24 -> 0.07496121842 | O24: =(N24-L24)/1.96 -> 0.0147700459
A26: Afname in longfunctie (FEV1) bij kinderen (%) | B26: Roet | C26: 1 | D26: 1 | E26: 1 | F26: 1 | H26: =C26/F26 -> 1 | I26: =$D26/$F26 -> 1 | J26: =$E26/$F26 -> 1 | K26: =($J26-$H26)/1.96 -> 0 | P26: =H26/L27 -> 6.428571429 | Q26: =P26*SQRT((K26/H26)^2+(O27/L27)^2) -> 1.171386922 | R26: =IF($D$6="","",$D$6) ->  | S26: =IF(R26="","",R26*P26) ->  | T26: =IF(R26="","",R26*Q26) ->  | U26: =IF(R26="","",R26*1.96*Q26) ->  | V26: =IF(R26="","",S26-U26) ->  | W26: =IF(R26="","",S26+U26) -> 
A27: Afname in longfunctie (FEV1) bij kinderen (%) | B27: ETS blootstelling ('meeroken') | C27: 1.4 | D27: 1 | E27: 1.9 | G27: 9 | L27: =C27/G27 -> 0.1555555556 | M27: =D27/G27 -> 0.1111111111 | N27: =E27/G27 -> 0.2111111111 | O27: =(N27-L27)/1.96 -> 0.0283446712
A29: Sterfte aan hart-en vaatziekten | B29: Roet | C29: 1 | D29: 1 | E29: 1 | F29: 1 | H29: =LN(C29)/F29 -> 0 | I29: =LN($D29)/$F29 -> 0 | J29: =LN($E29)/$F29 -> 0 | K29: =($J29-$H29)/1.96 -> 0 | P29: =H29/L30 -> 0 | Q29: =P29*SQRT((K29/H29)^2+(O30/L30)^2) ->  | R29: =IF($D$6="","",$D$6) ->  | S29: =IF(R29="","",R29*P29) ->  | T29: =IF(R29="","",R29*Q29) ->  | U29: =IF(R29="","",R29*1.96*Q29) ->  | V29: =IF(R29="","",S29-U29) ->  | W29: =IF(R29="","",S29+U29) -> 
A30: Sterfte aan hart-en vaatziekten | B30: ETS blootstelling ('meeroken') | C30: 1.27 | D30: 1.19 | E30: 1.36 | G30: 7 | L30: =LN(C30)/G30 -> 0.0341452715 | M30: =LN(D30)/G30 -> 0.02485047245 | N30: =LN(E30)/G30 -> 0.04392638568 | O30: =(N30-L30)/1.96 -> 0.004990364379
A32: Longkanker | B32: Roet | C32: 1 | D32: 1 | E32: 1 | F32: 1 | H32: =LN(C32)/F32 -> 0 | I32: =LN($D32)/$F32 -> 0 | J32: =LN($E32)/$F32 -> 0 | K32: =($J32-$H32)/1.96 -> 0 | P32: =H32/L33 -> 0 | Q32: =P32*SQRT((K32/H32)^2+(O33/L33)^2) ->  | R32: =IF($D$6="","",$D$6) ->  | S32: =IF(R32="","",R32*P32) ->  | T32: =IF(R32="","",R32*Q32) ->  | U32: =IF(R32="","",R32*1.96*Q32) ->  | V32: =IF(R32="","",S32-U32) ->  | W32: =IF(R32="","",S32+U32) -> 
A33: Longkanker | B33: ETS blootstelling ('meeroken') | C33: 1.21 | D33: 1.13 | E33: 1.3 | G33: 7 | L33: =LN(C33)/G33 -> 0.02723147994 | M33: =LN(D33)/G33 -> 0.01745966182 | N33: =LN(E33)/G33 -> 0.03748060921 | O33: =(N33-L33)/1.96 -> 0.005229147584
A35: Laag geboortegewicht | B35: PM2.5 | C35: 1.081 | D35: 1.04 | E35: 1.12 | F35: 10 | H35: =LN(C35)/F35 -> 0.007788653866 | I35: =LN($D35)/$F35 -> 0.003922071315 | J35: =LN($E35)/$F35 -> 0.01133286853 | K35: =($J35-$H35)/1.96 -> 0.001808272788 | P35: =H35/L36 -> 0.169274667 | Q35: =P35*SQRT((K35/H35)^2+(O36/L36)^2) -> 0.06706050533 | R35: =IF($D$7="","",$D$7) -> 10 | S35: =IF(R35="","",R35*P35) -> 1.69274667 | T35: =IF(R35="","",R35*Q35) -> 0.6706050533 | U35: =IF(R35="","",R35*1.96*Q35) -> 1.314385905 | V35: =IF(R35="","",S35-U35) -> 0.3783607652 | W35: =IF(R35="","",S35+U35) -> 3.007132574
A36: Laag geboortegewicht | B36: ETS blootstelling ('meeroken') | C36: 1.38 | D36: 1.13 | E36: 1.69 | G36: 7 | L36: =LN(C36)/G36 -> 0.04601192845 | M36: =LN(D36)/G36 -> 0.01745966182 | N36: =LN(E36)/G36 -> 0.07496121842 | O36: =(N36-L36)/1.96 -> 0.0147700459
A38: Afname in longfunctie (FEV1) bij kinderen (%) | B38: PM2.5 | C38: 1.6 | D38: 1 | E38: 2.3 | F38: 10 | H38: =C38/F38 -> 0.16 | I38: =$D38/$F38 -> 0.1 | J38: =$E38/$F38 -> 0.23 | K38: =($J38-$H38)/1.96 -> 0.03571428571 | P38: =H38/L39 -> 1.028571429 | Q38: =P38*SQRT((K38/H38)^2+(O39/L39)^2) -> 0.2963770958 | R38: =IF($D$7="","",$D$7) -> 10 | S38: =IF(R38="","",R38*P38) -> 10.28571429 | T38: =IF(R38="","",R38*Q38) -> 2.963770958 | U38: =IF(R38="","",R38*1.96*Q38) -> 5.808991078 | V38: =IF(R38="","",S38-U38) -> 4.476723208 | W38: =IF(R38="","",S38+U38) -> 16.09470536
A39: Afname in longfunctie (FEV1) bij kinderen (%) | B39: ETS blootstelling ('meeroken') | C39: 1.4 | D39: 1 | E39: 1.9 | G39: 9 | L39: =C39/G39 -> 0.1555555556 | M39: =D39/G39 -> 0.1111111111 | N39: =E39/G39 -> 0.2111111111 | O39: =(N39-L39)/1.96 -> 0.0283446712
A41: Sterfte aan hart-en vaatziekten | B41: PM2.5 | C41: 1.11 | D41: 1.09 | E41: 1.14 | F41: 10 | H41: =LN(C41)/F41 -> 0.01043600153 | I41: =LN($D41)/$F41 -> 0.008617769624 | J41: =LN($E41)/$F41 -> 0.01310282624 | K41: =($J41-$H41)/1.96 -> 0.001360624851 | P41: =H41/L42 -> 0.3056353362 | Q41: =P41*SQRT((K41/H41)^2+(O42/L42)^2) -> 0.05985969575 | R41: =IF($D$7="","",$D$7) -> 10 | S41: =IF(R41="","",R41*P41) -> 3.056353362 | T41: =IF(R41="","",R41*Q41) -> 0.5985969575 | U41: =IF(R41="","",R41*1.96*Q41) -> 1.173250037 | V41: =IF(R41="","",S41-U41) -> 1.883103325 | W41: =IF(R41="","",S41+U41) -> 4.229603399
A42: Sterfte aan hart-en vaatziekten | B42: ETS blootstelling ('meeroken') | C42: 1.27 | D42: 1.19 | E42: 1.36 | G42: 7 | L42: =LN(C42)/G42 -> 0.0341452715 | M42: =LN(D42)/G42 -> 0.02485047245 | N42: =LN(E42)/G42 -> 0.04392638568 | O42: =(N42-L42)/1.96 -> 0.004990364379
A44: Longkanker | B44: PM2.5 | C44: 1.16 | D44: 1.09 | E44: 1.23 | F44: 10 | H44: =LN(C44)/F44 -> 0.01484200051 | I44: =LN($D44)/$F44 -> 0.008617769624 | J44: =LN($E44)/$F44 -> 0.02070141694 | K44: =($J44-$H44)/1.96 -> 0.002989498177 | P44: =H44/L45 -> 0.5450309914 | Q44: =P44*SQRT((K44/H44)^2+(O45/L45)^2) -> 0.151675912 | R44: =IF($D$7="","",$D$7) -> 10 | S44: =IF(R44="","",R44*P44) -> 5.450309914 | T44: =IF(R44="","",R44*Q44) -> 1.51675912 | U44: =IF(R44="","",R44*1.96*Q44) -> 2.972847875 | V44: =IF(R44="","",S44-U44) -> 2.477462039 | W44: =IF(R44="","",S44+U44) -> 8.423157789
A45: Longkanker | B45: ETS blootstelling ('meeroken') | C45: 1.21 | D45: 1.13 | E45: 1.3 | G45: 7 | L45: =LN(C45)/G45 -> 0.02723147994 | M45: =LN(D45)/G45 -> 0.01745966182 | N45: =LN(E45)/G45 -> 0.03748060921 | O45: =(N45-L45)/1.96 -> 0.005229147584
